bitfinex/quotes_ETHUSD_20260109
["timestamp","ask_amount","ask_price","bid_price","bid_amount"]
[1767973861457,0.00080096,3120.0,3118.7,0.251]
[1767973861657,0.0191629,3119.9,3118.5,0.94661614]
[1767973861972,0.00080096,3120.0,3118.8,0.94581494]
[1767973862129,0.00080096,3120.0,3118.7,0.251]
[1767973862130,0.0008064,3120.6,3119.2,0.94581494]
[1767973862469,0.0008064,3120.6,3119.6,0.00080104]
[1767973862652,0.0191629,3120.4,3119.6,0.00080104]
[1767973863070,3.20482004,3120.3,3119.6,0.00080104]
[1767973863231,0.32239829,3120.2,3119.6,0.00080104]
[1767973863573,0.34156119,3120.2,3119.6,0.00080104]
[1767973864135,0.0191629,3120.0,3119.6,0.00080104]
[1767973864448,0.34156119,3120.2,3119.6,0.00080104]
[1767973865057,3.20502547,3120.1,3119.6,0.00080104]
[1767973865268,3.88016614,3120.1,3119.6,0.00080104]
[1767973865563,0.0191629,3120.0,3119.6,0.00080104]
[1767973865769,6.41005094,3120.1,3119.6,0.00080104]
[1767973865970,0.0191629,3120.0,3119.6,0.00080104]
[1767973866470,1.01169525,3120.0,3119.6,0.00080104]
[1767973866635,0.0191629,3119.8,3118.6,3.89]
[1767973866838,0.0191629,3119.5,3118.6,3.89]
[1767973867046,0.0191629,3119.5,3118.6,7.09648698]
[1767973867245,0.0191629,3119.5,3118.6,3.89]
[1767973867446,3.2055243,3119.7,3118.6,7.09652565]
[1767973867652,0.44088486,3119.6,3118.6,3.89]
[1767973867852,0.44088486,3119.6,3118.6,7.09656584]
[1767973868874,0.0191629,3119.4,3118.5,0.0008012]
[1767973869071,0.0191629,3119.1,3118.5,0.0008012]
[1767973869282,3.22524508,3119.1,3118.5,0.0008012]
[1767973869440,0.32252451,3119.0,3118.5,0.0008012]
[1767973869641,0.0191629,3119.4,3118.5,0.0008012]
[1767973870048,0.0191629,3119.7,3118.5,0.0008012]
[1767973870273,0.0191629,3119.3,3118.5,0.0008012]
[1767973870473,0.0191629,3119.1,3118.5,0.0008012]
[1767973870854,0.0191629,3118.9,3118.5,0.0008012]
[1767973871454,0.3225368,3118.8,3118.5,0.0008012]
[1767973871774,3.22527332,3119.1,3118.5,0.0008012]
[1767973871957,3.20611042,3119.1,3118.5,0.0008012]
[1767973872162,3.20601199,3119.2,3118.5,0.0008012]
[1767973872362,0.0191629,3119.1,3118.5,0.0008012]
[1767973872581,0.76345111,3119.1,3118.5,0.0008012]
[1767973873082,3.20588551,3119.3,3118.5,0.0008012]
[1767973873284,0.0191629,3119.5,3118.5,0.0008012]
[1767973873485,0.0191629,3119.3,3118.5,0.0008012]
[1767973873849,0.0191629,3119.1,3118.5,0.0008012]
[1767973875874,6.43132542,3119.1,3118.5,0.0008012]
[1767973876081,6.43132542,3119.1,3118.5,3.8908012]
[1767973876257,7.07637425,3119.1,3118.5,3.8908012]
[1767973876475,0.0191629,3118.9,3118.5,3.8908012]
[1767973878188,3.20620551,3119.0,3118.5,3.8908012]
[1767973878606,0.0191629,3118.8,3118.5,3.8908012]
[1767973878766,3.20620551,3119.0,3118.5,3.8908012]
[1767973878964,0.66421173,3119.1,3118.5,3.8908012]
[1767973878965,0.0191629,3119.4,3118.5,3.8908012]
[1767973879166,0.0191629,3119.2,3118.5,3.8908012]
[1767973879556,0.0191629,3119.0,3118.5,3.8908012]
[1767973879757,3.2055651,3119.6,3118.6,3.89]
[1767973880166,0.0191629,3119.9,3118.7,10.30292846]
[1767973880367,3.2266031,3119.7,3118.8,1.03029285]
[1767973880583,3.2266031,3119.7,3118.7,7.09646423]
[1767973880584,0.0191629,3119.5,3118.7,3.89]
[1767973880795,0.0191629,3119.3,3118.7,3.89]
[1767973880994,0.0191629,3119.1,3118.7,3.89]
[1767973882188,3.22529299,3119.1,3118.7,3.89]
[1767973882561,3.22529299,3119.1,3119.0,0.001]
[1767973882990,3.96958486,3119.1,3118.7,3.88741027]
[1767973883193,0.76345477,3119.1,3118.7,3.88741027]
[1767973883493,0.0191629,3119.5,3118.7,7.09386377]
[1767973883697,0.0191629,3119.5,3118.7,10.300328]
[1767973883898,3.22662884,3119.7,3118.7,10.300328]
[1767973884396,3.22662884,3119.7,3118.7,7.09386377]
[1767973884559,3.22662884,3119.7,3118.7,11.33044824]
[1767973884760,0.002,3119.7,3118.8,3.88741027]
[1767973885180,0.002,3119.7,3118.7,7.69403797]
[1767973885181,0.002,3119.7,3118.9,3.88741027]
[1767973885500,0.00280104,3120.0,3118.8,0.94747547]
[1767973885676,0.0191629,3119.8,3118.9,1.18479777]
[1767973885881,0.0191629,3119.6,3118.9,1.18479777]
[1767973886689,0.0191629,3119.6,3119.0,3.20615581]
[1767973886887,0.0191629,3119.6,3118.9,4.39104678]
[1767973887089,0.0191629,3119.6,3118.9,6.41250762]
[1767973887696,1.01449629,3120.0,3118.9,6.41250762]
[1767973887697,0.00280104,3120.0,3118.9,6.41250762]
[1767973887896,0.0191629,3120.3,3119.6,0.00080112]
[1767973888704,0.0191629,3120.3,3119.6,3.20634029]
[1767973888904,0.0191629,3120.1,3119.6,0.66700762]
[1767973889205,0.0191629,3119.7,3118.6,0.94747547]
[1767973889413,0.0191629,3119.5,3118.2,0.94847547]
[1767973889589,0.0191629,3118.6,3118.2,0.001]
[1767973889916,1.01169525,3118.8,3118.2,0.001]
[1767973890101,0.0191629,3118.6,3118.2,0.001]
[1767973890679,0.0191629,3119.1,3118.2,0.001]
[1767973890883,0.0191629,3118.8,3118.2,0.001]
[1767973891279,0.0191629,3119.1,3118.2,0.001]
[1767973891486,0.0191629,3118.9,3118.2,0.001]
[1767973891704,0.0191629,3119.1,3118.2,0.001]
[1767973892512,0.0191629,3118.9,3118.2,0.001]
[1767973892719,0.0191629,3119.1,3118.2,0.001]
[1767973892885,0.0191629,3118.9,3118.2,0.001]
[1767973893079,1.25869525,3119.3,3118.6,3.89]
[1767973893080,0.0191629,3119.3,3118.6,3.89]
[1767973893279,0.0191629,3119.3,3118.7,0.38908012]
[1767973893594,0.0191629,3119.3,3118.6,3.89]
[1767973894319,0.97228506,3119.7,3118.7,3.89]
[1767973894610,0.97228506,3119.7,3118.8,3.45627264]
[1767973894978,0.002,3119.1,3118.8,3.45627264]
[1767973895183,6.43010334,3119.7,3118.8,0.25]
[1767973895384,0.0191629,3119.5,3118.8,3.45632983]
[1767973895581,0.01996402,3120.0,3118.9,0.9842756]
[1767973895795,0.00080112,3120.0,3118.9,0.9842756]
[1767973896018,0.00080112,3120.0,3119.0,3.89]
[1767973896321,0.0191629,3119.9,3119.0,3.89]
[1767973896515,0.0191629,3119.9,3119.1,0.639]
[1767973896728,0.0191629,3119.9,3119.1,3.84496835]
[1767973896893,0.0191629,3119.7,3119.1,0.25]
[1767973897098,0.0191629,3119.7,3119.0,6.13386225]
[1767973897310,0.0191629,3119.7,3119.1,3.20604101]
[1767973897496,0.0191629,3119.7,3119.0,4.11179219]
[1767973897704,0.0191629,3119.7,3119.1,3.20605098]
[1767973898507,0.0191629,3119.7,3118.5,0.0008012]
[1767973898508,0.0191629,3119.4,3118.5,0.0008012]
[1767973898806,0.97228506,3119.3,3118.5,0.0008012]
[1767973899006,0.95312216,3119.2,3118.5,0.0008012]
[1767973899512,0.97228506,3119.1,3118.5,0.0008012]
[1767973899944,0.0191629,3119.1,3118.5,0.0008012]
[1767973900311,0.0191629,3118.6,3118.5,0.0008012]
[1767973900491,0.0191629,3118.6,3118.2,0.001]
[1767973900692,0.0191629,3118.4,3118.2,0.001]
[1767973900886,0.0191629,3118.6,3118.2,0.001]
[1767973901417,0.32255817,3118.6,3118.2,0.001]
[1767973901587,0.0191629,3118.7,3118.2,0.001]
[1767973901588,0.0191629,3118.5,3118.2,0.001]
[1767973902724,0.0191629,3118.3,3117.9,0.001]
[1767973903017,0.0191629,3118.0,3117.6,0.00080112]
[1767973903216,0.0191629,3118.3,3117.6,0.00080112]
[1767973903416,0.0191629,3118.0,3117.6,0.00080112]
[1767973904465,0.76338305,3118.2,3117.6,0.00080112]
[1767973904634,3.4547727,3118.4,3117.6,0.00080112]
[1767973904837,0.248,3118.4,3117.6,0.00080112]
[1767973905141,3.45481159,3118.4,3117.6,0.00080112]
[1767973905464,0.0191629,3118.3,3117.6,0.00080112]
[1767973906366,3.20681159,3118.4,3117.6,0.00080112]
[1767973906567,0.66242974,3118.3,3117.6,0.00080112]
[1767973906756,3.20697838,3118.2,3117.6,0.00080112]
[1767973906953,3.86934857,3118.3,3117.6,0.00080112]
[1767973907154,3.86934857,3118.3,3117.9,0.001]
[1767973907357,0.0191629,3118.1,3117.9,0.001]
[1767973907579,0.80485525,3118.1,3117.9,0.001]
[1767973908155,3.20691883,3118.3,3117.9,0.001]
[1767973908353,3.22608173,3118.3,3117.9,0.001]
[1767973908570,6.43300056,3118.3,3117.9,0.001]
[1767973908787,3.20718409,3118.0,3117.9,0.001]
[1767973909388,0.0191629,3118.1,3117.9,0.001]
[1767973909590,0.42031966,3118.0,3117.9,0.001]
[1767973910690,3.22625622,3118.1,3117.9,0.001]
[1767973911255,0.0191629,3118.1,3117.9,0.001]
[1767973911494,3.22625887,3118.1,3117.9,0.001]
[1767973911692,3.22590715,3118.5,3117.9,0.001]
[1767973911989,0.0191629,3118.3,3117.9,0.001]
[1767973912193,0.32259356,3118.2,3117.9,0.001]
[1767973912370,0.32259356,3118.2,3117.6,0.00080112]
[1767973912371,0.0191629,3118.1,3117.6,0.00080112]
[1767973912555,0.0191629,3117.9,3117.6,0.00080112]
[1767973913491,0.0191629,3117.9,3116.4,0.00080136]
[1767973913492,0.0191629,3117.1,3116.4,0.00080136]
[1767973914393,0.0191629,3116.7,3116.4,0.00080136]
[1767973914593,0.99616152,3116.7,3116.4,0.00080136]
[1767973915194,0.0191629,3116.5,3116.4,0.00080136]
[1767973915381,0.0191629,3116.5,3115.7,3.46053292]
[1767973915696,0.0191629,3116.5,3115.8,3.2094443]
[1767973916505,0.0191629,3116.5,3115.7,3.87661771]
[1767973916701,3.22789855,3116.5,3115.7,0.66710791]
[1767973916903,0.0191629,3116.3,3115.5,0.00081202]
[1767973917602,3.2281306,3116.3,3115.5,0.00081202]
[1767973917800,0.0191629,3115.9,3115.5,0.00081202]
[1767973918006,0.0191629,3115.7,3115.5,0.00081202]
[1767973918222,0.00080128,3115.8,3114.9,3.46131555]
[1767973918501,0.00080128,3115.8,3115.2,3.21004271]
[1767973919002,0.00080128,3115.8,3115.0,0.59713156]
[1767973919178,0.00080128,3115.8,3115.0,0.251]
[1767973919382,0.0191629,3115.7,3115.0,0.251]
[1767973919577,0.00080128,3115.8,3115.0,3.46121319]
[1767973920200,0.00080128,3115.8,3115.5,0.001]
[1767973921472,3.20865669,3116.6,3115.5,0.00181283]
[1767973921803,0.248,3116.6,3115.5,0.00181283]
[1767973922006,0.0191629,3116.7,3115.6,0.251]
[1767973922406,3.20929924,3116.8,3115.6,0.251]
[1767973922928,0.00080136,3116.8,3115.7,0.97942819]
[1767973923595,0.01996442,3117.4,3115.9,0.97942819]
[1767973923806,0.01996442,3117.4,3116.4,0.00080144]
[1767973924817,3.22778649,3117.4,3116.4,0.00080144]
[1767973925008,0.0191629,3116.6,3115.4,0.00080136]
[1767973925208,0.0191629,3116.4,3115.4,0.00080136]
[1767973925411,0.0191629,3116.2,3115.4,0.00080136]
[1767973925610,0.0191629,3116.2,3115.5,0.34816181]
[1767973925815,0.0191629,3116.2,3115.5,3.55791419]
[1767973926384,0.0191629,3116.4,3115.5,6.76767185]
[1767973927325,0.0191629,3116.4,3115.5,3.55791419]
[1767973927529,0.97204621,3116.8,3115.5,3.55791419]
[1767973927530,0.01996434,3116.8,3115.5,9.97742951]
[1767973927731,0.00080144,3116.8,3115.6,0.99782309]
[1767973927885,3.20925054,3116.8,3115.6,0.99782309]
[1767973928093,0.0191629,3116.7,3115.7,0.251]
[1767973928539,0.00080144,3116.8,3115.7,0.251]
[1767973929107,3.2283925,3116.8,3115.7,0.251]
[1767973929827,0.01996434,3116.8,3115.8,6.41889722]
[1767973929994,0.00080144,3116.8,3115.9,4.55698972]
[1767973930326,0.0191629,3117.3,3116.4,0.00080152]
[1767973930892,0.0191629,3116.9,3116.4,0.00080152]
[1767973931234,0.0191629,3116.5,3115.4,0.00080136]
[1767973931392,0.0191629,3115.9,3115.4,0.00080136]
[1767973931722,3.20965464,3115.6,3115.4,0.00080136]
[1767973932027,3.85349164,3115.6,3115.4,0.00080136]
[1767973932205,3.85349164,3115.6,3114.2,7.40154877]
[1767973932206,3.85349164,3115.6,3114.2,3.21102303]
[1767973932402,3.85349164,3115.6,3113.9,0.00080072]
[1767973932403,0.0191629,3114.7,3113.9,0.00080072]
[1767973932793,0.97124477,3114.7,3113.9,0.00080072]
[1767973933332,0.0191629,3114.5,3113.9,0.00080072]
[1767973934041,0.0191629,3114.7,3113.9,0.00080072]
[1767973934420,0.01996394,3114.9,3113.9,0.00080072]
[1767973934619,0.00080104,3114.9,3113.9,0.98022891]
[1767973934941,0.01997573,3115.9,3114.5,0.00080112]
[1767973935846,0.0191629,3115.5,3114.5,0.00080112]
[1767973936051,0.0191629,3115.5,3114.5,0.6430595]
[1767973936558,3.22873671,3115.7,3114.5,0.6430595]
[1767973936711,0.0191629,3115.5,3114.5,0.6430595]
[1767973937650,0.0191629,3115.3,3114.5,0.00080112]
[1767973938049,0.0191629,3115.5,3114.5,0.00080112]
[1767973938509,3.22898544,3115.5,3114.5,0.00080112]
[1767973939648,3.22873805,3115.7,3114.5,0.00080112]
[1767973939814,0.0191629,3115.5,3114.5,0.00080112]
[1767973940020,0.0191629,3115.5,3114.5,0.98927858]
[1767973940451,0.0191629,3115.7,3114.5,0.98927858]
[1767973941856,0.00080136,3115.8,3114.6,6.42137032]
[1767973942160,0.00080136,3115.8,3114.6,10.61148367]
[1767973942321,4.16099584,3116.4,3114.6,10.61148367]
[1767973942322,0.95288339,3116.8,3114.8,0.97942819]
[1767973942515,0.95288339,3116.8,3115.5,0.00081364]
[1767973942516,3.22775405,3116.7,3115.5,0.00081364]
[1767973943022,0.0191629,3116.7,3115.5,0.25181364]
[1767973943948,3.22771688,3116.7,3115.6,6.41930928]
[1767973944144,0.0191629,3116.7,3115.6,6.41930928]
[1767973944357,0.0191629,3116.7,3115.7,0.66711229]
[1767973944527,3.22770144,3116.7,3115.7,0.66711229]
[1767973944851,0.0191629,3116.7,3115.7,0.66711229]
[1767973945070,0.0191629,3116.5,3115.7,0.66711229]
[1767973945223,0.0191629,3116.5,3115.5,3.2105252]
[1767973945421,0.0191629,3116.3,3115.5,0.00081364]
[1767973945653,0.0191629,3115.9,3115.5,0.00081364]
[1767973946020,0.0191629,3115.7,3114.8,3.21142003]
[1767973946340,0.0191629,3115.7,3114.9,3.21037012]
[1767973946546,0.0191629,3115.7,3115.0,0.32113701]
[1767973947125,0.0191629,3115.7,3114.9,3.21037012]
[1767973947766,0.00080144,3115.8,3114.9,3.21037012]
[1767973948259,0.00080144,3115.8,3114.8,6.42193429]
[1767973949163,0.00080144,3115.8,3114.8,9.63241329]
[1767973949368,0.248,3116.6,3115.5,0.00081445]
[1767973949552,3.22792467,3116.5,3115.5,0.00081445]
[1767973949756,3.89828785,3116.5,3115.5,0.00081445]
[1767973950157,7.08788672,3116.5,3115.5,0.00081445]
[1767973950469,0.67036318,3116.5,3115.5,0.00081445]
[1767973950787,0.248,3116.6,3115.5,0.00081445]
[1767973951493,3.45665181,3116.6,3115.5,0.00081445]
[1767973951678,6.66530362,3116.6,3115.5,0.00081445]
[1767973952292,0.97124477,3116.5,3115.5,0.00081445]
[1767973952497,0.0191629,3116.3,3115.5,0.00081445]
[1767973953251,0.0191629,3115.9,3115.5,0.00081445]
[1767973953660,0.97535028,3115.9,3114.2,4.82522979]
[1767973953860,0.97535028,3115.9,3113.3,0.00080104]
[1767973953861,0.00080152,3115.8,3114.7,0.251]
[1767973954066,0.00080152,3115.8,3115.1,3.21009835]
[1767973954283,0.00080152,3115.8,3115.1,3.85213845]
[1767973954488,0.00080152,3115.8,3115.1,0.6420401]
[1767973954699,0.00080152,3115.8,3114.8,0.252]
[1767973955197,0.00080152,3115.8,3115.1,3.21016981]
[1767973955498,0.00080152,3115.8,3114.8,0.252]
[1767973955798,0.0191629,3115.7,3114.8,0.001]
[1767973956368,3.20965464,3115.6,3114.8,0.001]
[1767973956573,0.64384629,3115.5,3114.8,0.001]
[1767973957971,6.41978428,3115.8,3114.8,0.001]
[1767973958407,0.0191629,3115.7,3114.8,0.001]
[1767973959273,0.0191629,3115.7,3114.8,3.891]
[1767973960609,3.20965464,3115.6,3114.8,3.891]
[1767973961106,6.41930928,3115.6,3114.8,3.891]
[1767973961304,0.66301012,3115.5,3114.8,3.891]
[1767973962307,0.64384722,3115.5,3114.8,3.891]
[1767973962506,3.20958122,3115.7,3114.8,7.10145934]
[1767973963691,6.41916244,3115.7,3114.8,3.891]
[1767973963937,6.43832534,3115.7,3114.8,3.891]
[1767973964228,0.0191629,3115.5,3114.8,3.891]
[1767973964522,3.20955162,3115.7,3114.8,3.891]
[1767973964713,0.32103531,3115.6,3114.8,3.891]
[1767973965227,0.32103531,3115.6,3114.9,3.89]
[1767973966428,0.32103531,3115.6,3114.9,7.10037361]
[1767973966597,0.32103531,3115.6,3114.5,0.00080112]
[1767973966598,0.0191629,3115.5,3114.5,0.00080112]
[1767973966929,0.0191629,3115.3,3115.1,0.001]
[1767973968323,0.0191629,3115.3,3114.5,0.00080112]
[1767973968515,0.00080112,3114.9,3114.5,3.53189664]
[1767973969396,0.00080112,3114.9,3114.5,3.53194976]
[1767973969724,0.00080112,3114.9,3114.4,3.21080501]
[1767973970295,0.00080112,3114.9,3114.5,3.21075508]
[1767973970526,0.00080112,3114.9,3114.1,0.251]
[1767973970825,0.00080112,3114.9,3114.0,3.2112257]
[1767973971023,0.00080112,3114.9,3114.1,3.21116485]
[1767973971403,0.00080112,3114.9,3114.1,3.85348398]
[1767973971610,0.00080112,3114.9,3114.1,7.06468464]
[1767973972514,0.00080112,3114.9,3114.1,3.85348398]
[1767973972707,0.00080112,3114.9,3114.1,3.85347394]
[1767973973328,0.00080112,3114.9,3114.1,7.0646746]
[1767973973533,0.00080112,3114.9,3114.2,0.73156746]
[1767973974102,3.20992447,3115.4,3114.2,1.63998345]
[1767973974343,0.0191629,3115.3,3114.5,0.0008012]
[1767973974500,3.21006676,3115.2,3114.5,0.0008012]
[1767973974830,0.0191629,3115.1,3114.5,0.0008012]
[1767973975030,0.76166079,3115.1,3114.5,0.0008012]
[1767973976406,0.98568249,3114.9,3114.5,0.0008012]
[1767973976912,0.0191629,3114.7,3114.5,0.0008012]
[1767973977731,4.19610943,3114.9,3114.5,0.0008012]
[1767973977936,3.22954542,3114.9,3114.5,0.0008012]
[1767973978236,3.67432843,3114.9,3114.5,0.0008012]
[1767973978946,3.22954542,3114.9,3114.5,0.0008012]
[1767973979149,6.43992794,3114.9,3114.5,0.0008012]
[1767973980331,0.96651959,3114.8,3114.5,0.0008012]
[1767973980532,0.96651959,3114.9,3114.5,0.0008012]
[1767973980844,0.00080152,3115.8,3114.5,0.90921719]
[1767973981453,0.002,3116.0,3114.5,0.90921719]
[1767973981454,0.002,3116.0,3115.4,0.0008016]
[1767973981638,0.002,3116.0,3115.5,0.00081526]
[1767973982151,0.002,3116.3,3115.5,0.00081526]
[1767973982319,0.002,3116.3,3115.5,0.90923125]
[1767973983061,0.0191629,3116.1,3115.5,0.00081526]
[1767973983223,0.2691629,3116.3,3115.5,0.00081526]
[1767973983418,0.0191629,3116.1,3115.5,0.00081526]
[1767973983751,0.2691629,3116.3,3115.5,0.00081526]
[1767973983752,0.002,3116.3,3115.5,0.00081526]
[1767973984222,0.0211629,3116.3,3115.5,0.00081526]
[1767973984553,0.002,3116.3,3115.6,0.92729168]
[1767973985252,0.002,3116.3,3115.5,0.3219666]
[1767973985440,0.002,3116.3,3115.7,0.92729168]
[1767973985845,0.002,3116.3,3115.5,0.00081526]
[1767973986049,0.002,3116.3,3115.5,3.46153061]
[1767973986224,0.002,3116.3,3115.6,3.20964434]
[1767973986437,0.002,3116.3,3115.6,4.13693602]
[1767973986643,0.002,3116.3,3115.7,0.43887513]
[1767973987074,0.002,3116.3,3115.9,3.20934561]
[1767973987270,6.41776102,3116.8,3115.9,0.92729168]
[1767973987470,0.0191629,3116.7,3115.7,0.43887513]
[1767973987638,0.0191629,3116.7,3115.8,3.20944089]
[1767973988174,3.20928127,3116.8,3115.8,3.20944089]
[1767973988551,0.0191629,3116.7,3115.8,3.20942762]
[1767973988747,0.00080152,3116.8,3115.9,0.92729168]
[1767973989072,3.20923328,3116.8,3115.9,4.13656188]
[1767973989261,3.20923328,3116.8,3116.0,0.41365619]
[1767973989462,3.20923328,3116.8,3115.9,0.92729168]
[1767973989647,0.00080152,3116.8,3115.9,4.13662838]
[1767973989853,0.00080152,3116.8,3116.0,0.92729168]
[1767973991440,0.00080152,3116.8,3116.0,4.13652354]
[1767973991768,0.00080152,3116.8,3116.0,7.34576615]
[1767973992068,0.00080152,3116.8,3116.2,0.92729168]
[1767973993385,0.002,3116.5,3115.9,0.001]
[1767973994162,0.002,3116.5,3115.9,3.21031763]
[1767973994362,0.002,3116.5,3116.0,3.20923189]
[1767973995300,0.00280152,3116.8,3116.2,6.41804689]
[1767973995597,3.20863605,3117.4,3116.3,0.64180469]
[1767973995897,3.20863605,3117.4,3116.4,0.0008016]
[1767973996073,0.0191629,3117.1,3116.4,0.0008016]
[1767973996462,0.00080152,3117.4,3116.4,0.92809328]
[1767973997079,0.00080152,3117.4,3116.5,4.81729168]
[1767973997402,0.002,3117.6,3117.0,0.0008016]
[1767973998097,0.0191629,3117.3,3116.7,3.89]
[1767973998398,0.0191629,3117.1,3116.7,3.89]
[1767973999695,3.2272745,3117.1,3116.7,3.89]
[1767973999900,3.20804329,3117.2,3116.7,3.89]
[1767974000099,0.93604653,3117.1,3116.4,0.0008016]
[1767974000299,0.0191629,3116.7,3115.9,0.001]
[1767974000505,0.0191629,3116.5,3115.9,0.001]
[1767974000826,0.0191629,3116.3,3115.9,0.001]
[1767974001108,0.0191629,3116.3,3114.8,3.21041683]
[1767974001109,0.0191629,3115.5,3114.5,0.92809288]
[1767974001272,0.0191629,3115.5,3114.5,1.34198692]
[1767974001273,3.20986069,3115.4,3114.5,1.34198692]
[1767974001472,3.20979898,3115.5,3114.5,4.13887094]
[1767974001678,0.0191629,3115.5,3114.5,4.13887094]
[1767974001901,3.22892598,3115.5,3114.5,4.13887094]
[1767974002210,3.22892598,3115.5,3114.5,0.0008012]
[1767974002211,0.0191629,3115.3,3114.5,0.0008012]
[1767974002412,0.6649481,3115.3,3114.5,0.0008012]
[1767974002796,0.0191629,3115.7,3114.6,0.92729168]
[1767974002976,0.248,3115.6,3114.6,0.92729168]
[1767974003406,0.248,3115.6,3114.7,3.21058207]
[1767974004210,0.0191629,3115.5,3114.5,3.21153243]
[1767974004518,0.0191629,3115.3,3114.5,0.0008012]
[1767974005376,3.21006676,3115.2,3114.5,0.0008012]
[1767974005575,0.32292297,3115.1,3114.5,0.0008012]
[1767974005903,0.0191629,3114.9,3114.5,0.0008012]
[1767974006280,0.0191629,3114.6,3113.9,0.00080072]
[1767974006471,0.0191629,3114.4,3113.9,0.00080072]
[1767974006971,0.0191629,3114.2,3113.9,0.00080072]
[1767974007370,0.0191629,3114.4,3113.9,0.00080072]
[1767974007687,3.55497489,3114.4,3113.9,0.00080072]
[1767974008198,0.34407321,3114.4,3113.9,0.00080072]
[1767974008386,3.5550032,3114.4,3113.9,0.00080072]
[1767974009033,6.76593319,3114.4,3113.9,0.00080072]
[1767974009312,3.5550032,3114.4,3113.9,0.00080072]
[1767974009911,0.32491031,3114.4,3113.9,0.00080072]
[1767974010220,3.55498136,3114.4,3113.9,0.00080072]
[1767974010410,0.34407321,3114.4,3113.9,0.00080072]
[1767974010710,0.01716291,3114.4,3113.9,0.00080072]
[1767974010913,3.22806396,3114.4,3113.9,0.00080072]
[1767974011316,0.01716291,3114.4,3113.9,0.00080072]
[1767974012682,3.22806671,3114.4,3113.9,0.00080072]
[1767974013283,4.12833961,3114.4,3113.9,0.00080072]
[1767974013600,0.41283396,3114.3,3113.9,0.00080072]
[1767974013791,4.12833961,3114.4,3113.9,0.00080072]
[1767974015419,3.22806671,3114.4,3113.9,0.00080072]
[1767974016100,3.47606671,3114.4,3113.9,0.00080072]
[1767974016416,3.47606671,3114.4,3113.3,0.00080104]
[1767974016417,0.0191629,3114.0,3113.3,0.00080104]
[1767974016636,0.0191629,3113.4,3113.3,0.00080104]
[1767974016810,0.01716291,3113.4,3113.3,0.00080104]
[1767974017005,0.0191629,3113.6,3113.3,0.00080104]
[1767974017936,0.0191629,3114.0,3113.3,0.00080104]
[1767974017937,0.248,3114.0,3113.3,0.00080104]
[1767974018114,0.0191629,3113.9,3113.3,0.00080104]
[1767974018435,0.0191629,3113.7,3113.3,0.00080104]
[1767974018941,0.0191629,3113.5,3113.3,0.00080104]
[1767974019116,0.2671629,3113.5,3112.4,0.0008056]
[1767974019318,0.0191629,3112.9,3112.4,0.0008056]
[1767974019520,0.01716291,3112.9,3112.4,0.0008056]
[1767974019716,0.00080104,3113.7,3112.4,0.322276]
[1767974020036,0.248,3113.6,3112.4,0.90092184]
[1767974020537,0.00080104,3113.7,3112.5,0.90011624]
[1767974021706,0.0191629,3113.6,3112.6,4.11286442]
[1767974022030,0.0191629,3113.4,3112.4,0.0008056]
[1767974022234,0.0191629,3113.0,3112.4,0.0008056]
[1767974022938,0.0191629,3112.8,3112.4,0.0008056]
[1767974024243,0.0191629,3113.2,3112.4,0.0008056]
[1767974024564,3.77204045,3113.2,3112.4,0.0008056]
[1767974025134,0.0191629,3113.0,3112.4,0.0008056]
[1767974025844,0.0191629,3113.4,3112.4,0.0008056]
[1767974025845,0.0191629,3113.4,3112.4,0.90092184]
[1767974026033,0.0191629,3113.2,3112.4,0.0008056]
[1767974026384,0.0191629,3113.0,3112.4,0.0008056]
[1767974026679,0.66544192,3113.0,3112.4,0.0008056]
[1767974026835,0.64627902,3113.0,3112.4,0.0008056]
[1767974027038,3.21223218,3113.1,3112.4,0.0008056]
[1767974027753,0.248,3113.3,3112.4,0.90092184]
[1767974028260,0.248,3113.3,3112.5,3.2128514]
[1767974028462,3.46008448,3113.3,3112.4,4.11387358]
[1767974028778,3.46008448,3113.3,3112.4,1.31238925]
[1767974028945,3.4600274,3113.3,3112.4,4.52534114]
[1767974029166,3.4600274,3113.3,3112.7,0.001]
[1767974029383,3.4600274,3113.3,3112.4,4.52534114]
[1767974029894,0.248,3113.3,3112.4,4.52534114]
[1767974030104,0.248,3113.3,3112.4,7.73829577]
[1767974030279,0.01996394,3113.7,3112.5,1.71156914]
[1767974030482,3.45978958,3113.6,3112.5,1.71156914]
[1767974030686,0.00080104,3113.7,3112.6,0.93765951]
[1767974030892,0.248,3113.6,3112.6,0.93765951]
[1767974031196,0.0191629,3113.3,3112.5,0.77390963]
[1767974031402,0.0191629,3113.3,3112.4,3.21374168]
[1767974031612,0.0191629,3113.3,3112.4,0.0008056]
[1767974031613,0.0191629,3113.1,3112.4,0.0008056]
[1767974031989,0.0191629,3113.3,3112.4,0.0008056]
[1767974032192,0.248,3113.2,3112.4,0.0008056]
[1767974032411,3.21223218,3113.1,3112.4,0.0008056]
[1767974032592,3.56017169,3113.1,3112.4,0.0008056]
[1767974032786,0.34793951,3113.1,3112.4,0.0008056]
[1767974032993,0.0008056,3112.8,3112.3,0.00080056]
[1767974034175,0.0008056,3112.8,3111.8,4.15116907]
[1767974034407,0.00080056,3112.7,3111.9,3.21347086]
[1767974034590,0.00080056,3112.7,3111.9,3.94993485]
[1767974034793,0.00080056,3112.7,3111.9,7.16340571]
[1767974035005,0.00080056,3112.7,3111.9,8.10106522]
[1767974035425,0.00080056,3112.7,3112.0,0.93765951]
[1767974036408,0.00080056,3112.7,3112.1,0.93765951]
[1767974036574,0.00080056,3112.7,3111.9,0.73646399]
[1767974036778,0.00080056,3112.7,3111.8,0.93765951]
[1767974037211,0.00080056,3112.7,3111.9,3.21341961]
[1767974037427,0.00080056,3112.7,3111.8,0.93765951]
[1767974037579,0.00080056,3112.7,3111.9,3.2134263]
[1767974038417,0.00080056,3112.7,3111.4,0.93845999]
[1767974038418,0.90128145,3112.7,3111.4,0.93845999]
[1767974038616,0.90128145,3112.7,3111.4,0.00080048]
[1767974038617,1.14848089,3112.6,3111.4,0.00080048]
[1767974039623,0.90048089,3112.5,3111.4,3.2147088]
[1767974039797,0.00080056,3112.7,3111.8,3.21355041]
[1767974040001,0.24880056,3112.7,3111.5,1.25913039]
[1767974040199,1.14928145,3112.7,3111.4,3.21474171]
[1767974040512,6.42549636,3112.6,3111.7,0.001]
[1767974040831,0.00080056,3112.7,3111.7,0.93865951]
[1767974040989,0.0008056,3112.8,3112.3,0.00080064]
[1767974041526,0.002,3113.3,3112.4,0.0008064]
[1767974041727,0.00080104,3113.7,3112.4,0.0008064]
[1767974041728,0.00080104,3113.7,3112.8,0.93765951]
[1767974042089,6.42403946,3113.7,3112.4,0.93846591]
[1767974042325,0.64240395,3113.6,3112.4,0.0008064]
[1767974042512,3.85415004,3113.6,3112.4,7.36437517]
[1767974042717,0.90048089,3113.0,3112.4,0.0008064]